bitfinex/quotes_ETHUSD_20251012
["timestamp","ask_amount","ask_price","bid_price","bid_amount"]
[1760289274261,2.40575426,4156.8,4155.5,0.6634]
[1760289274567,2.40575426,4156.8,4156.0,2.40612791]
[1760289274955,2.40577274,4156.7,4156.0,2.40612791]
[1760289275150,2.40560534,4157.0,4156.2,2.40602174]
[1760289275464,0.001,4157.2,4155.9,2.40616749]
[1760289275633,0.001,4157.2,4155.5,0.6634]
[1760289275634,0.001,4157.2,4155.5,0.2193]
[1760289275835,0.001,4157.2,4156.4,2.40590086]
[1760289276262,0.001,4157.2,4155.7,2.40633346]
[1760289276263,0.001,4157.2,4156.6,2.40575645]
[1760289276463,2.40553905,4157.1,4156.3,2.40593357]
[1760289276665,0.001,4157.2,4155.6,0.4441]
[1760289276870,2.40552308,4157.1,4155.0,0.6634]
[1760289277182,2.4062822,4155.8,4155.0,0.6634]
[1760289277338,3.72078,4156.8,4153.3,0.964]
[1760289277667,2.40621766,4155.9,4153.8,2.40738681]
[1760289277852,0.3059,4155.8,4153.6,2.40754453]
[1760289278053,2.40692534,4154.7,4153.7,0.26268445]
[1760289278271,2.40697195,4154.6,4153.8,2.40743415]
[1760289278469,2.9214,4155.7,4153.7,0.26268445]
[1760289278674,0.47191177,4155.8,4153.3,0.964]
[1760289278675,2.40706705,4154.5,4153.6,2.40753523]
[1760289278843,2.40709923,4154.4,4153.6,2.40750161]
[1760289279037,0.12,4155.1,4153.6,0.57791676]
[1760289279252,1.92,4155.6,4154.4,0.12]
[1760289279253,0.12,4155.4,4154.4,0.12]
[1760289279477,2.40690716,4154.8,4154.7,0.12]
[1760289279683,2.40698274,4154.6,4153.3,0.964]
[1760289279990,2.40698274,4154.6,4154.3,0.12]
[1760289280352,2.40703758,4154.5,4154.3,0.12]
[1760289280552,2.40698303,4154.6,4154.3,0.12]
[1760289280749,2.40650719,4155.4,4153.1,0.4461]
[1760289280955,0.12,4154.7,4154.1,0.12]
[1760289281280,2.40718819,4154.3,4154.1,0.12]
[1760289281483,2.40697058,4154.6,4154.1,0.12]
[1760289281664,2.40697058,4154.6,4153.1,0.4461]
[1760289281665,0.1052,4154.5,4153.1,0.002]
[1760289281855,2.4071444,4154.3,4153.1,0.002]
[1760289282180,2.40778195,4153.2,4153.1,0.002]
[1760289282556,2.51358195,4153.2,4153.1,0.002]
[1760289283361,10.09667395,4153.2,4153.1,0.002]
[1760289283763,10.09667395,4153.2,4150.4,2.40935033]
[1760289283764,1.92,4152.9,4150.4,2.40935033]
[1760289283962,2.40905723,4151.1,4149.7,0.2217]
[1760289284176,2.40907878,4151.0,4150.2,2.40951132]
[1760289284502,2.40919795,4150.8,4149.9,2.40969307]
[1760289284684,2.4091202,4150.9,4150.0,2.40959608]
[1760289284997,2.40918814,4150.8,4149.2,0.2217]
[1760289285176,2.40918814,4150.8,4150.0,2.40963078]
[1760289285370,0.1059,4152.0,4150.1,0.4723]
[1760289285676,2.74216,4152.3,4150.4,2.40935863]
[1760289285875,0.1059,4152.2,4149.4,0.4723]
[1760289286079,5.378678,4151.9,4149.4,0.4723]
[1760289286261,2.40909813,4151.0,4150.0,2.40963312]
[1760289286461,2.40900719,4151.1,4150.3,2.4094538]
[1760289286657,2.40900558,4151.1,4150.3,2.4094538]
[1760289286854,0.6543578,4151.8,4150.3,2.4094538]
[1760289287098,0.1059,4151.8,4149.4,0.4723]
[1760289287303,0.1059,4151.8,4150.1,2.40958049]
[1760289287460,0.1059,4151.8,4149.9,0.4723]
[1760289287655,2.40871388,4151.6,4150.0,2.40963855]
[1760289288358,2.40866215,4151.7,4150.9,2.40911468]
[1760289288595,0.1146,4152.4,4150.1,2.64318049]
[1760289288803,2.40858977,4151.9,4150.5,0.4396]
[1760289289102,2.40848243,4152.0,4151.1,2.40894839]
[1760289289306,2.40830576,4152.3,4151.1,2.40894839]
[1760289289307,2.40854654,4151.9,4151.1,2.40894839]
[1760289289611,2.40854654,4151.9,4151.0,2.40904656]
[1760289289769,2.40860661,4151.8,4151.0,2.40904656]
[1760289290120,0.1059,4152.6,4150.5,0.4396]
[1760289290273,2.40875236,4151.6,4150.3,0.002]
[1760289290475,2.40860186,4151.8,4151.0,2.40905388]
[1760289290815,0.106,4152.5,4150.4,0.4396]
[1760289291026,0.1145,4153.0,4150.4,0.4396]
[1760289291324,2.40801387,4152.8,4150.7,2.40923217]
[1760289291486,2.40801387,4152.8,4150.4,0.4396]
[1760289291487,0.20345,4152.9,4150.9,2.40911609]
[1760289291683,0.20345,4152.9,4150.3,0.002]
[1760289291684,2.40801071,4152.9,4152.0,2.40843082]
[1760289291883,2.40801071,4152.9,4152.3,0.12]
[1760289292413,0.12,4153.0,4152.3,0.12]
[1760289292788,2.40784705,4153.1,4151.5,0.4396]
[1760289292990,2.40784705,4153.1,4152.0,2.40846302]
[1760289293415,2.40802247,4152.8,4152.0,2.40846302]
[1760289293597,2.40802247,4152.8,4151.2,2.4089275]
[1760289293598,4.8945,4153.4,4149.7,2.40977677]
[1760289293799,0.0011,4152.7,4150.0,0.4396]
[1760289294199,3.4721,4152.3,4150.5,2.40930503]
[1760289294397,2.4089507,4151.2,4150.2,2.40952165]
[1760289294728,2.40883793,4151.4,4150.3,2.41145623]
[1760289294898,2.40870564,4151.7,4150.6,2.40925659]
[1760289294899,2.40878256,4151.5,4150.6,2.40925659]
[1760289295101,2.40878256,4151.5,4149.8,2.41170659]
[1760289295102,7.605309,4150.3,4149.8,0.002]
[1760289295299,1.92174882,4151.4,4146.0,0.2193]
[1760289295300,2.4105985,4148.4,4147.3,0.4396]
[1760289295606,0.0604,4149.9,4147.3,0.4396]
[1760289295607,2.41064468,4148.3,4147.3,0.4396]
[1760289295795,2.41016123,4149.1,4147.3,0.4396]
[1760289295991,2.41062831,4148.3,4147.3,0.4396]
[1760289296191,2.41058427,4148.4,4147.3,0.4396]
[1760289296392,0.099,4149.2,4147.3,0.4396]
[1760289296393,2.41071407,4148.2,4147.5,0.28728594]
[1760289296622,2.41058831,4148.4,4147.5,0.00200001]
[1760289296829,2.41016123,4149.1,4147.5,0.00200001]
[1760289297132,0.099,4149.2,4147.5,0.00200001]
[1760289297337,2.40958528,4150.1,4147.5,0.00200001]
[1760289297338,0.0604,4150.3,4147.6,0.4396]
[1760289297632,2.46987263,4150.3,4147.6,0.4396]
[1760289297813,2.46987263,4150.3,4148.5,2.41049999]
[1760289297814,2.40958049,4150.1,4148.5,2.41049999]
[1760289298017,2.41004552,4149.3,4148.4,2.41055409]
[1760289298218,2.41004552,4149.3,4148.5,2.41050502]
[1760289298421,2.40999402,4149.4,4148.6,2.4104512]
[1760289298606,2.40969741,4149.9,4148.1,0.6732]
[1760289298812,2.41014107,4149.2,4148.3,2.4106126]
[1760289299116,2.41012057,4149.2,4148.3,2.4106126]
[1760289299431,2.41010151,4149.3,4148.3,2.4106126]
[1760289299610,2.41010151,4149.3,4148.4,2.41055373]
[1760289300025,2.41005247,4149.3,4148.2,2.41068415]
[1760289300326,0.43898726,4150.3,4148.3,0.30838841]
[1760289300533,2.149,4150.7,4148.4,0.4396]
[1760289300703,0.0604,4150.8,4148.4,0.4396]
[1760289300704,2.40967861,4150.0,4148.4,0.4396]
[1760289300906,2.40982806,4149.7,4148.4,0.4396]
[1760289301222,0.0604,4150.8,4149.1,2.41014797]
[1760289301223,2.40957443,4150.2,4149.1,2.41014797]
[1760289301428,2.40923217,4150.7,4148.8,0.4396]
[1760289301631,2.40923217,4150.7,4148.1,0.2336]
[1760289301632,1.92,4150.4,4148.1,0.2336]
[1760289301836,2.41026942,4149.0,4148.0,0.4396]
[1760289302021,2.41026942,4149.0,4148.2,2.41067842]
[1760289302223,2.40991312,4149.6,4148.3,0.52610731]
[1760289302413,0.0604,4150.8,4148.3,0.4396]
[1760289302613,0.0604,4150.8,4149.1,2.41015303]
[1760289302817,0.12,4150.3,4149.6,0.12]
[1760289303130,2.40980086,4149.8,4149.6,0.12]
[1760289303311,0.12,4150.3,4149.6,0.12]
[1760289303517,2.40981275,4149.7,4149.6,0.12]
[1760289303908,0.12,4150.3,4149.6,0.12]
[1760289304110,0.0604,4151.5,4149.7,0.4396]
[1760289304331,0.12,4151.1,4150.4,0.12]
[1760289304518,0.12,4151.1,4149.6,2.4098526]
[1760289304519,2.40818783,4152.5,4150.2,0.4396]
[1760289304718,2.40818783,4152.5,4150.3,2.40946322]
[1760289304719,2.40899426,4151.2,4150.3,2.40946322]
[1760289304906,2.40824583,4152.4,4150.2,0.4396]
[1760289305108,5.578864,4152.4,4150.2,0.4396]
[1760289305334,2.16081648,4152.5,4150.1,0.2336]
[1760289305335,0.099,4152.3,4150.1,0.4396]
[1760289305537,2.40916437,4150.9,4150.1,2.84916739]
[1760289305840,2.40866968,4151.7,4149.5,0.4396]
[1760289305841,2.40940378,4150.5,4149.5,0.4396]
[1760289306014,2.40940378,4150.5,4149.8,2.40974901]
[1760289306341,2.40859386,4151.8,4149.9,2.84928341]
[1760289306632,1.92,4152.1,4150.4,2.40935993]
[1760289306831,2.4089328,4151.3,4150.4,3.08989592]
[1760289307041,0.2748011,4152.2,4150.4,3.08989592]
[1760289307042,2.40877965,4151.5,4150.4,3.08994125]
[1760289307202,2.40824583,4152.4,4150.8,2.40912158]
[1760289307402,2.40874237,4151.6,4150.8,2.40912158]
[1760289307717,2.40887993,4151.4,4150.4,0.68053599]
[1760289307928,2.40887993,4151.4,4150.6,2.40923292]
[1760289308119,2.40842624,4152.1,4150.5,2.40934691]
[1760289308120,2.40890259,4151.3,4150.5,2.40934691]
[1760289308325,2.4083166,4152.3,4150.4,0.4396]
[1760289308630,2.64901523,4152.5,4151.4,2.40882467]
[1760289308837,2.40841863,4152.2,4151.3,2.84846839]
[1760289309006,0.099,4153.2,4151.3,0.72444684]
[1760289309207,2.40783992,4153.1,4151.7,2.40860695]
[1760289309405,0.099,4153.9,4151.8,0.4396]
[1760289309619,0.40765354,4153.8,4151.9,2.40853585]
[1760289309915,0.099,4153.9,4151.9,2.40848792]
[1760289310120,2.40799871,4152.9,4151.8,2.8481914]
[1760289310326,0.1154,4154.1,4151.9,0.72441914]
[1760289310639,0.001,4154.1,4152.0,0.6336]
[1760289310939,0.001,4154.1,4152.0,0.4396]
[1760289311146,0.001,4154.1,4152.1,0.2336]
[1760289311446,0.001,4154.1,4152.1,1.6372]
[1760289311617,0.001,4154.1,4152.9,2.40793691]
[1760289311818,2.40732079,4154.0,4153.0,0.48160063]
[1760289312020,2.40732079,4154.0,4152.2,0.4396]
[1760289312021,2.40760804,4153.5,4152.2,2.84795457]
[1760289312326,2.4073731,4154.0,4152.3,0.4396]
[1760289312525,0.001,4154.1,4152.3,0.4396]
[1760289312704,0.001,4154.1,4152.5,2.40818783]
[1760289312910,2.40830832,4154.1,4153.3,2.40771564]
[1760289313107,0.001,4154.1,4152.9,2.40790838]
[1760289313312,0.001,4154.1,4154.0,2.40731824]
[1760289313728,2.40627377,4155.9,4154.2,2.40720234]
[1760289314050,2.40582477,4156.6,4154.7,2.40686946]
[1760289314051,1.92,4156.6,4154.7,2.40686946]
[1760289314268,0.44259068,4156.5,4154.8,0.68028695]
[1760289314548,2.50660876,4157.3,4154.9,0.4396]
[1760289314756,2.50660876,4157.3,4156.1,0.12]
[1760289314757,2.40586596,4156.6,4156.1,0.12]
[1760289314952,0.12,4156.8,4156.1,0.12]
[1760289315150,0.12,4157.0,4156.3,0.12]
[1760289315356,0.12,4157.0,4155.5,0.4396]
[1760289315357,2.40517593,4157.7,4155.7,2.40631667]
[1760289315525,0.25063759,4157.6,4155.8,2.40626946]
[1760289315722,0.12256148,4158.9,4154.9,2.40674568]
[1760289315723,0.006,4159.6,4155.9,0.4396]
[1760289315947,2.409867,4159.4,4155.9,0.4396]
[1760289316256,1.92,4159.0,4156.0,2.40615976]
[1760289316438,1.92,4158.9,4156.2,2.40604398]
[1760289316639,2.40510534,4157.9,4156.3,0.3079244]
[1760289316821,2.40510534,4157.9,4157.0,2.4055703]
[1760289317021,2.40510534,4157.9,4156.4,0.4396]
[1760289317022,2.349,4158.6,4156.4,0.4396]
[1760289317218,2.40531571,4157.5,4156.4,0.4396]
[1760289317422,2.40482889,4158.3,4156.4,0.4396]
[1760289317653,2.40482889,4158.3,4156.1,0.2336]
[1760289317654,0.1008,4158.3,4156.1,0.2336]
[1760289317853,4.32506024,4157.9,4155.2,1.424]
[1760289318162,2.40611151,4156.1,4155.2,1.424]
[1760289318364,2.40604562,4156.2,4155.2,1.424]
[1760289318550,2.40485691,4158.3,4155.4,2.40650719]
[1760289318857,2.40547243,4157.2,4155.5,0.46]
[1760289319032,2.40535143,4157.4,4155.5,0.46]
[1760289319224,2.40540073,4157.4,4155.6,2.40639137]
[1760289319420,1.92,4158.3,4156.3,2.40597401]
[1760289319622,1.92,4158.1,4156.2,2.40604342]
[1760289319827,2.40506024,4157.9,4156.2,2.40604342]
[1760289320022,1.11238037,4158.0,4155.2,0.964]
[1760289320228,1.92,4158.6,4156.3,0.46]
[1760289320490,1.92,4158.6,4157.2,2.4054629]
[1760289320633,2.40471323,4158.5,4157.4,2.40532965]
[1760289320878,2.40471323,4158.5,4155.6,2.40636888]
[1760289320879,0.01,4160.0,4158.4,0.2299]
[1760289321055,0.01,4160.0,4157.5,0.6899]
[1760289321223,2.40418066,4159.5,4157.9,0.46]
[1760289321430,0.01,4160.0,4157.9,0.46]
[1760289321726,2.40463788,4158.7,4157.9,0.46]
[1760289321928,0.01,4160.0,4158.0,2.4050024]
[1760289322123,0.01,4160.0,4159.5,2.40413511]
[1760289322629,0.01,4160.0,4159.5,0.46]
[1760289323020,0.01,4160.0,4159.9,2.40390393]
[1760289323253,0.01,4160.0,4159.9,0.48078958]
[1760289323454,0.01,4160.0,4159.9,3.49750393]
[1760289323762,0.01,4160.0,4159.9,0.46]
[1760289323930,0.01,4160.0,4158.7,0.6336]
[1760289324296,0.01,4160.0,4158.7,0.46]
[1760289324500,0.01,4160.0,4158.5,2.0]
[1760289324501,0.01,4160.0,4158.8,0.46]
[1760289324672,0.01,4160.0,4159.5,2.40410356]
[1760289325303,0.01,4160.0,4159.9,0.12]
[1760289325467,2.40316669,4161.2,4159.6,0.46]
[1760289325468,0.1089,4163.9,4159.6,0.46]
[1760289325668,2.40165233,4163.8,4160.5,0.6336]
[1760289325979,5.167929,4163.9,4161.7,2.40284392]
[1760289326303,5.167929,4163.9,4160.9,2.4033262]
[1760289326304,2.40271613,4162.0,4161.0,0.46]
[1760289326461,2.40205616,4163.1,4161.0,0.46]
[1760289326654,0.1089,4163.0,4160.2,2.40373058]
[1760289326999,1.92,4162.6,4160.1,0.46]
[1760289327303,2.40303058,4161.5,4160.6,2.40348088]
[1760289327508,2.40228697,4162.7,4160.2,0.46]
[1760289327509,1.92,4163.2,4160.7,2.64373854]
[1760289327795,0.1089,4163.4,4160.8,0.46]
[1760289328026,2.40265174,4162.1,4160.8,0.46]
[1760289328162,0.1089,4163.4,4161.5,2.40296687]
[1760289328358,0.1714,4164.0,4161.6,0.46]
[1760289328573,2.40130631,4164.4,4161.8,2.40280647]
[1760289328774,1.92,4164.2,4161.9,0.74628065]
[1760289328974,2.40092058,4165.1,4160.7,0.6336]
[1760289328975,0.30920828,4166.0,4162.0,0.46]
[1760289329157,0.37646196,4166.5,4164.1,0.2299]
[1760289329365,0.37646196,4166.5,4164.2,0.46]
[1760289329366,2.7766095,4166.5,4164.2,0.46]
[1760289329607,0.37646196,4166.5,4164.2,0.46]
[1760289329793,2.40063457,4165.6,4164.2,0.46]
[1760289330116,3.46206128,4166.8,4164.2,0.46]
[1760289330271,2.40110559,4164.8,4163.9,0.46]
[1760289330602,2.4004993,4165.8,4163.9,0.46]
[1760289330808,4.32061455,4165.6,4163.9,0.46]
[1760289331111,2.40188307,4163.4,4163.3,0.46]
[1760289331404,0.2619085,4166.0,4164.1,2.40145719]
[1760289331703,0.2619085,4166.0,4163.4,2.40188307]
[1760289331704,0.2619085,4166.0,4164.2,0.6899]
[1760289331904,2.40115246,4164.7,4163.7,0.46]
[1760289332105,2.4004993,4165.8,4163.7,0.46]
[1760289332106,2.40061455,4165.6,4163.7,0.46]
[1760289332292,2.40061455,4165.6,4158.9,1.23765364]
[1760289332293,0.36534078,4165.7,4162.3,0.46]
[1760289332492,2.40067218,4165.5,4163.1,0.46]
[1760289332669,2.40119099,4164.6,4163.1,0.46]
[1760289332870,2.40165076,4163.9,4163.1,0.46]
[1760289333109,2.66234727,4166.0,4163.2,2.40199846]
[1760289333405,2.40058019,4165.7,4163.3,0.46]
[1760289333605,0.24996802,4165.5,4163.4,2.40188307]
[1760289333907,0.24996802,4165.5,4163.3,0.46]
[1760289333908,2.61908497,4166.1,4163.5,0.46]
[1760289334071,2.61908497,4166.1,4163.6,0.6336]
[1760289334276,2.61908497,4166.1,4163.8,0.6336]
[1760289334277,2.40078745,4165.3,4163.8,0.6336]
[1760289334503,2.61908497,4166.1,4163.8,0.6336]
[1760289334504,2.40086947,4165.2,4164.0,2.40153698]
[1760289334711,2.40044168,4165.9,4164.1,0.6899]
[1760289334883,2.40060863,4165.7,4164.6,2.40114215]
[1760289335087,2.40113189,4164.8,4164.2,0.46]
[1760289335406,2.40090273,4165.1,4165.0,0.12]
[1760289336003,2.40090273,4165.1,4161.8,2.40278031]
[1760289336004,0.0994,4165.1,4164.7,0.12]
[1760289336309,0.0994,4165.1,4161.3,2.4030653]
[1760289336310,2.40136397,4164.3,4164.2,0.12]
[1760289336508,2.40224715,4162.8,4162.0,0.6899]
[1760289336713,2.50076397,4164.3,4162.1,0.30926963]
[1760289336714,0.3395364,4164.3,4162.1,0.30926963]
[1760289336881,1.92,4164.2,4162.0,0.46]
[1760289337078,3.797862,4163.5,4161.2,0.46]
[1760289337319,1.92,4163.0,4161.2,0.46]
[1760289337517,5.378035,4163.3,4161.2,0.46]
[1760289337518,4.32194076,4163.3,4161.2,0.46]
[1760289337717,0.2068,4168.0,4161.2,0.46]
[1760289338020,0.0991,4167.6,4163.4,0.6336]
[1760289338183,0.12546083,4166.0,4163.8,0.6336]
[1760289338388,0.12546083,4166.0,4165.5,2.40066752]
[1760289338711,0.0991,4167.6,4164.7,0.46]
[1760289338712,2.0191,4167.6,4164.7,0.46]
[1760289338888,2.40021655,4166.3,4164.7,0.46]
[1760289339211,2.40039709,4166.0,4164.8,2.401027]
[1760289339441,2.40038406,4166.0,4164.7,0.46]
[1760289339621,2.40044168,4165.9,4164.7,0.46]
[1760289339823,5.01942397,4166.1,4164.7,0.46]
[1760289340043,2.61908497,4166.1,4164.8,2.4010227]
[1760289340257,2.40043371,4166.0,4164.8,2.4010227]
[1760289340542,2.61908497,4166.1,4164.0,2.40153698]
[1760289340840,2.40067895,4165.5,4163.9,0.46]
[1760289341042,2.40061776,4165.6,4163.9,0.46]
[1760289341209,2.4007749,4165.4,4163.9,0.46]
[1760289341414,3.072556,4165.9,4163.9,0.46]
[1760289341615,2.40077784,4165.4,4164.2,2.40139513]
[1760289341808,2.40077784,4165.4,4164.3,2.40134006]
[1760289342014,2.40089659,4165.2,4164.0,2.40153698]
[1760289342212,4.58229315,4166.0,4163.9,0.46]
[1760289342412,5.193116,4165.9,4163.9,0.46]
[1760289342631,5.193116,4165.9,4163.2,0.2299]
[1760289342632,2.40096375,4165.0,4163.2,0.2299]
[1760289342847,0.099,4165.2,4163.2,0.46]
[1760289343070,2.40138153,4164.3,4162.7,0.46]
[1760289343248,4.720088,4164.9,4162.7,0.46]
[1760289343544,2.40182029,4163.6,4162.5,2.40238076]
[1760289343745,2.40199243,4163.3,4162.1,2.40263328]
[1760289343944,2.40123606,4164.6,4162.3,2.40249621]
[1760289343945,2.40189243,4163.4,4162.3,2.40249621]
[1760289344149,3.951188,4163.6,4161.6,0.4361]
[1760289344350,3.951188,4163.6,4160.3,2.4036486]
[1760289344351,1.92,4163.3,4161.1,5.0]
[1760289344542,2.40211386,4163.0,4160.5,0.4361]
[1760289344855,2.40277861,4161.9,4160.8,2.4033375]
[1760289345150,2.40257556,4162.2,4160.1,2.40378837]
[1760289345336,1.92,4162.9,4160.0,0.2299]
[1760289345536,11.44083697,4162.7,4162.6,0.002]
[1760289345844,9.04526067,4162.7,4162.6,0.002]
[1760289346145,5.57538067,4162.7,4162.6,0.002]
[1760289346348,8.06894367,4162.7,4162.6,0.002]
[1760289346520,5.57538067,4162.7,4162.6,0.002]
[1760289346715,7.92846167,4162.7,4162.6,0.002]
[1760289346918,2.04,4162.6,4160.8,0.12]
[1760289347125,2.04,4162.6,4160.5,0.12]
[1760289347126,2.4032432,4161.1,4160.5,0.12]
[1760289347351,0.12,4161.0,4160.5,0.12]
[1760289347556,0.003,4161.4,4159.1,2.61904738]
[1760289347757,2.40314502,4161.3,4160.2,2.40371777]
[1760289347928,0.003,4161.4,4160.5,2.40354232]
[1760289348130,0.003,4161.4,4160.5,0.24035423]
[1760289348452,0.003,4161.4,4160.6,0.4492]
[1760289348637,1.92,4162.3,4160.4,2.4036122]
[1760289348957,2.4028132,4161.8,4160.5,2.40352794]
[1760289349254,2.4028132,4161.8,4160.3,0.4492]
[1760289349255,5.54235972,4163.2,4160.6,0.4492]
[1760289349419,0.56413597,4163.1,4160.6,0.4492]
[1760289349622,2.40256444,4162.3,4160.6,0.4492]
[1760289349821,0.099,4163.3,4160.6,0.4492]
[1760289349822,2.40124803,4164.6,4160.6,0.4492]
[1760289350135,0.099,4164.0,4160.6,0.4492]
[1760289350450,1.92,4163.6,4161.7,2.40282857]
[1760289350652,1.92,4163.6,4160.6,0.4492]
[1760289350653,2.40239936,4162.6,4161.2,2.40315293]
[1760289350853,2.4017677,4163.6,4160.1,2.62715131]
[1760289350854,2.40273731,4162.0,4160.4,0.4492]
[1760289351022,2.40257276,4162.3,4160.4,0.4492]
[1760289351218,2.40269163,4162.0,4160.7,2.40342617]
[1760289351451,2.40234468,4162.6,4160.6,2.40349949]
[1760289351651,2.40273395,4162.0,4160.5,0.28528755]
[1760289351920,2.40276745,4161.9,4161.0,2.40321097]
[1760289352143,2.40269552,4162.0,4160.9,2.4032722]
[1760289352341,2.40275112,4161.9,4161.0,2.4032484]
[1760289352521,1.92,4162.6,4160.4,0.4492]
[1760289352722,0.8021969,4162.5,4159.9,2.40385292]
[1760289352920,0.6336,4163.3,4159.8,2.40396172]
[1760289352921,2.40327996,4161.0,4159.8,2.40396172]
[1760289353120,0.2059,4161.7,4159.7,0.4492]
[1760289353322,2.40315379,4161.2,4160.3,2.40365812]
[1760289353550,0.1001,4162.0,4159.7,0.4492]
[1760289353751,0.1011,4162.7,4160.5,2.40351417]
[1760289353940,0.1011,4162.7,4160.6,2.40348918]
[1760289353941,2.40293538,4161.6,4160.6,2.40348918]
[1760289354145,2.4029989,4161.5,4160.6,2.40348918]
[1760289354351,2.40304156,4161.4,4160.4,2.40361503]
[1760289354556,0.1011,4162.0,4160.2,0.4492]
[1760289354753,0.1011,4162.0,4156.0,1.21469999]
[1760289354754,2.40341871,4160.8,4159.9,2.40390322]
[1760289354938,0.2038,4161.9,4159.4,0.4492]
[1760289354939,2.40332632,4160.9,4160.0,2.40380626]
[1760289355139,2.40327544,4161.0,4160.1,2.40373637]
[1760289355460,2.40338712,4160.8,4159.4,0.4492]
[1760289355655,2.40338712,4160.8,4159.9,2.40387087]
[1760289355968,2.40373727,4160.2,4159.3,2.40425054]
[1760289356170,0.1021,4161.3,4158.9,2.40448195]
[1760289356467,0.0505,4160.8,4158.5,0.2234]
[1760289356670,2.4041011,4159.6,4158.7,2.40457366]
[1760289356871,2.40411461,4159.6,4158.0,0.2299]
[1760289357047,1.92,4160.6,4158.0,0.2299]
[1760289357238,2.4041853,4159.5,4158.0,0.2299]
[1760289357440,2.40419989,4159.4,4158.8,0.12]
[1760289357653,0.12,4159.5,4158.8,0.12]
[1760289357873,2.40466159,4158.6,4157.2,2.40546521]
[1760289358106,2.404888,4158.2,4157.4,2.40532663]
[1760289358272,2.40483786,4158.3,4157.2,2.40546521]
[1760289358442,2.40436632,4159.1,4157.5,2.4052761]
[1760289358642,2.40486056,4158.3,4157.5,2.4052761]
[1760289358868,0.1016,4158.9,4157.3,2.4054003]
[1760289359070,0.1016,4158.9,4156.7,0.002]
[1760289359243,2.40495291,4158.1,4157.2,2.40546521]
[1760289359442,1.92,4158.7,4156.7,0.002]
[1760289359783,0.0734,4157.2,4156.7,0.002]
[1760289359955,6.81259021,4157.2,4156.7,0.002]
[1760289360152,4.50016521,4157.2,4156.7,0.002]
[1760289360341,2.40417008,4159.5,4156.7,0.002]
[1760289360342,1.92,4158.8,4156.7,0.002]
[1760289360541,2.60054915,4160.7,4157.1,2.40748988]
[1760289360542,0.1748,4158.3,4157.1,2.40748988]
[1760289360761,2.40526456,4157.6,4157.1,0.002]
[1760289360948,0.1748,4158.3,4157.1,0.002]
[1760289361277,2.40546521,4157.2,4157.1,0.002]
[1760289361638,2.50446521,4157.2,4157.1,0.002]
[1760289361843,5.75865077,4157.2,4157.1,0.002]
[1760289362043,2.99544977,4157.2,4157.1,0.002]
[1760289362243,4.91544977,4157.2,4157.1,0.002]
[1760289362479,4.91544977,4157.2,4156.3,0.002]
[1760289362480,1.92,4157.0,4156.3,0.002]
[1760289362690,0.6336,4156.7,4156.3,0.002]
[1760289362845,30.0,4156.9,4153.3,0.4492]
[1760289362846,2.40709241,4154.4,4153.3,0.4492]
[1760289363048,0.1134,4155.1,4153.3,2.40769525]
[1760289363286,2.0334,4155.1,4152.8,0.6726]
[1760289363449,2.0334,4155.1,4151.3,2.40883421]
[1760289363450,0.099,4155.0,4152.2,0.6726]
[1760289363644,0.1134,4155.1,4152.3,2.85750383]
[1760289363864,0.2122,4155.5,4152.4,0.75729038]
[1760289364068,2.40690023,4154.8,4153.3,2.4077167]
[1760289364376,2.40700663,4154.6,4153.7,2.40746381]
[1760289364561,1.92,4155.4,4153.3,0.4492]
[1760289364759,2.40678409,4155.0,4153.3,0.4492]
[1760289364957,2.64742559,4155.0,4153.8,2.40742832]
[1760289365166,2.64742559,4155.0,4153.5,2.40759309]
[1760289365167,0.2122,4155.5,4151.7,0.6336]
[1760289365351,2.0191,4155.4,4152.9,0.4492]
[1760289365553,0.0991,4155.4,4152.9,0.4492]
[1760289365864,0.0991,4155.4,4153.0,2.4078979]
[1760289365865,1.92,4155.3,4153.0,2.4078979]
[1760289366051,2.40689271,4154.8,4153.9,2.40736918]
[1760289366254,0.2112,4156.4,4154.7,2.40685578]
[1760289366481,2.40649766,4155.5,4154.5,2.40699456]
[1760289366678,2.40649766,4155.5,4153.9,0.24073692]
[1760289366679,2.40647073,4155.5,4153.9,0.24073692]
[1760289366989,2.40627874,4155.8,4154.8,2.40680857]
[1760289367172,2.40650989,4155.4,4154.5,2.40697946]
[1760289367581,2.40650989,4155.4,4154.6,2.40696402]
[1760289367812,2.40650989,4155.4,4154.4,0.12]
[1760289367813,0.12,4155.1,4154.4,0.12]
[1760289368101,2.40735131,4154.0,4153.0,2.40786764]
[1760289368253,2.40735131,4154.0,4152.3,0.28552581]
[1760289368254,2.40754985,4153.7,4152.3,0.28552581]
[1760289368452,2.40754985,4153.7,4151.6,0.4492]
[1760289368453,0.1264,4153.9,4151.6,0.4492]
[1760289368659,0.1264,4153.9,4150.9,0.2234]
[1760289368660,1.92,4153.7,4150.9,0.2234]
[1760289368854,15.35840001,4153.3,4150.8,0.4492]
[1760289369094,2.0205,4153.2,4151.1,2.40898994]
[1760289369276,2.4085773,4151.9,4150.3,2.40946437]
[1760289369593,0.24085773,4151.9,4150.3,2.40946437]
[1760289369797,0.24085773,4151.9,4150.1,0.4512]
[1760289370084,0.1005,4152.2,4150.1,0.4512]
[1760289370085,0.1005,4152.2,4151.1,2.40896597]
[1760289370288,2.40844557,4152.1,4151.1,2.40896597]
[1760289370492,2.40806395,4152.8,4150.7,0.4492]
[1760289370493,0.1005,4152.8,4150.7,0.4492]
[1760289370693,2.40801215,4152.9,4151.8,2.40856639]
[1760289370855,2.40801387,4152.8,4151.6,2.40869511]
[1760289371060,2.40812704,4152.7,4150.7,0.4492]
[1760289371256,2.4080822,4152.7,4150.9,2.40911609]
[1760289371578,2.40807185,4152.7,4151.8,2.40858763]
[1760289371888,2.40813562,4152.6,4150.7,0.4492]
[1760289372201,0.48161518,4152.5,4150.7,0.4492]
[1760289372357,2.40849596,4152.0,4150.7,0.4492]
[1760289372557,0.1005,4152.8,4151.5,2.40874702]
[1760289372762,2.4083721,4152.2,4150.8,2.40913534]